bitfinex/quotes_SOLUSD_20241115
["timestamp","ask_amount","ask_price","bid_price","bid_amount"]
[1731656634820,11.83177458,210.14,210.11,15.3158]
[1731656634974,11.83177458,210.13,210.11,15.3158]
[1731656635172,11.83177458,210.13,210.06,11.83177458]
[1731656635173,11.83177458,210.13,210.06,28.30737458]
[1731656635374,11.83177458,210.12,210.07,20.0]
[1731656635769,11.83177458,210.13,210.07,20.0]
[1731656636177,11.83177458,210.12,210.07,20.0]
[1731656636772,11.83177458,210.11,210.07,20.0]
[1731656637089,11.83177458,210.12,210.07,20.0]
[1731656638282,23.776884,210.19,210.07,20.0]
[1731656638485,11.83177458,210.12,210.07,20.0]
[1731656638682,11.83177458,210.1,210.06,16.4756]
[1731656638988,11.83177458,210.09,210.06,16.4756]
[1731656639586,11.83177458,210.07,210.01,16.0345]
[1731656639893,11.83177458,210.05,210.01,16.0345]
[1731656640077,0.06075,210.17,210.01,16.0345]
[1731656640078,11.83177458,210.04,210.01,16.0345]
[1731656640278,11.83177458,210.03,210.01,16.0345]
[1731656640688,11.83177458,210.02,210.01,16.0345]
[1731656641395,11.83177458,210.02,209.96,16.4324]
[1731656642080,11.83177458,210.0,209.96,16.4324]
[1731656642314,11.83177458,209.99,209.96,16.4324]
[1731656642598,11.83177458,210.04,209.97,11.83177458]
[1731656642892,11.83177458,210.06,209.99,11.83177458]
[1731656643093,11.83177458,210.08,210.01,11.83177458]
[1731656643266,4.7588,210.14,209.97,0.12549]
[1731656643467,11.83177458,210.09,210.02,11.83177458]
[1731656643997,11.83177458,210.1,210.03,11.83177458]
[1731656644297,11.83177458,210.09,210.02,11.83177458]
[1731656644599,11.83177458,210.07,210.01,20.0]
[1731656644777,11.83177458,210.07,210.0,11.83177458]
[1731656644977,11.83177458,210.08,210.01,11.83177458]
[1731656645172,11.83177458,210.09,210.02,11.83177458]
[1731656645493,11.83177458,210.1,210.02,11.83177458]
[1731656645691,11.83177458,210.09,210.02,11.83177458]
[1731656645991,11.83177458,210.13,210.06,11.83177458]
[1731656646779,11.83177458,210.14,210.07,11.83177458]
[1731656647972,11.83177458,210.13,210.06,31.83177458]
[1731656648987,11.83177458,210.14,210.07,11.83177458]
[1731656649187,11.83177458,210.13,210.06,31.83177458]
[1731656650801,11.83177458,210.14,210.07,11.83177458]
[1731656651697,11.83177458,210.13,210.06,31.83177458]
[1731656651906,11.83177458,210.1,210.06,20.0]
[1731656652219,11.83177458,210.08,210.05,16.1649]
[1731656652502,11.83177458,210.07,210.05,16.1649]
[1731656652795,11.83177458,210.09,210.05,16.1649]
[1731656653191,11.83177458,210.08,210.05,16.1649]
[1731656653573,11.83177458,210.09,210.05,16.1649]
[1731656653977,11.83177458,210.11,210.05,16.1649]
[1731656654896,11.83177458,210.13,210.06,11.83177458]
[1731656655076,11.83177458,210.11,210.06,20.0]
[1731656655477,11.83177458,210.13,210.06,31.83177458]
[1731656655674,11.83177458,210.14,210.07,11.83177458]
[1731656655904,11.83177458,210.13,210.06,31.83177458]
[1731656656402,4.7578,210.18,210.06,31.83177458]
[1731656656403,11.83177458,210.15,210.08,20.0]
[1731656656695,4.7578,210.18,210.08,20.0]
[1731656656696,11.83177458,210.14,210.08,20.0]
[1731656658697,11.83177458,210.14,210.06,31.83177458]
[1731656659499,11.83177458,210.19,210.12,11.83177458]
[1731656660306,11.83177458,210.17,210.1,17.89097458]
[1731656660486,11.83177458,210.16,210.1,6.0592]
[1731656661002,11.83177458,210.17,210.1,17.89097458]
[1731656661803,11.83177458,210.16,210.1,6.0592]
[1731656662688,11.83177458,210.15,210.1,6.0592]
[1731656663390,11.83177458,210.13,210.08,20.0]
[1731656663598,11.83177458,210.11,210.05,16.1649]
[1731656663786,11.83177458,210.1,210.05,16.1649]
[1731656663982,11.83177458,210.09,210.05,16.1649]
[1731656664693,11.83177458,210.1,210.05,16.1649]
[1731656664889,11.83177458,210.11,210.06,20.0]
[1731656665392,0.12549,210.06,209.95,15.5354]
[1731656665592,11.83177458,210.0,209.95,15.5354]
[1731656666294,11.83177458,210.01,209.95,15.5354]
[1731656667005,11.83177458,210.01,209.96,20.0]
[1731656667508,11.83177458,210.02,209.96,20.0]
[1731656669512,11.83177458,210.01,209.96,20.0]
[1731656669721,11.83177458,209.98,209.95,15.5354]
[1731656670604,11.83177458,209.97,209.95,15.5354]
[1731656670803,11.83177458,209.98,209.95,15.5354]
[1731656672112,11.83177458,210.0,209.95,15.5354]
[1731656672398,11.83177458,210.02,209.95,27.36717458]
[1731656672603,11.83177458,210.01,209.95,15.5354]
[1731656672904,11.83177458,210.03,209.96,31.83177458]
[1731656673099,11.83177458,210.03,209.96,11.83177458]
[1731656673406,11.83177458,210.03,209.96,31.83177458]
[1731656673787,11.83177458,210.04,209.97,11.83177458]
[1731656674020,11.83177458,210.03,209.96,31.83177458]
[1731656674314,11.83177458,210.02,209.96,20.0]
[1731656675510,11.83177458,210.0,209.95,15.5354]
[1731656675715,11.83177458,209.99,209.95,15.5354]
[1731656676801,11.83177458,210.01,209.95,15.5354]
[1731656677001,11.83177458,210.02,209.95,27.36717458]
[1731656677203,11.83177458,210.03,209.96,11.83177458]
[1731656677410,11.83177458,210.04,209.98,11.83177458]
[1731656677911,11.83177458,210.03,209.97,20.0]
[1731656678308,11.83177458,210.03,209.97,31.83177458]
[1731656678494,11.83177458,210.03,209.97,11.83177458]
[1731656678695,11.83177458,210.04,209.97,11.83177458]
[1731656679496,11.83177458,210.03,209.96,31.83177458]
[1731656680018,11.83177458,210.02,209.95,27.36717458]
[1731656680199,11.83177458,210.02,209.96,20.0]
[1731656680399,11.83177458,210.03,209.96,31.83177458]
[1731656680600,11.83177458,210.08,210.01,11.83177458]
[1731656681104,4.7594,210.11,209.96,20.0]
[1731656681105,11.83177458,210.09,210.02,11.83177458]
[1731656682000,11.83177458,210.1,210.03,11.83177458]
[1731656682504,11.83177458,210.1,210.04,11.83177458]
[1731656682895,11.83177458,210.1,210.03,27.63767458]
[1731656684619,11.83177458,210.1,210.04,11.83177458]
[1731656684913,6.0664,210.2,210.08,11.83177458]
[1731656685105,11.83177458,210.16,210.09,11.83177458]
[1731656685413,11.83177458,210.16,210.03,22.2535]
[1731656685414,11.83177458,210.14,210.07,11.83177458]
[1731656685914,11.83177458,210.15,210.08,11.83177458]
[1731656686117,11.83177458,210.15,210.09,31.83177458]
[1731656686810,11.83177458,210.14,210.08,20.0]
[1731656687007,11.83177458,210.15,210.08,11.83177458]
[1731656687199,11.83177458,210.15,210.09,20.0]
[1731656687403,11.83177458,210.15,210.09,31.83177458]
[1731656688101,11.83177458,210.18,210.11,11.83177458]
[1731656688791,11.83177458,210.18,210.09,20.0]
[1731656688792,161.6,210.22,210.14,11.83177458]
[1731656689098,11.83177458,210.2,210.13,11.83177458]
[1731656689298,11.83177458,210.19,210.13,20.0]
[1731656689511,11.83177458,210.18,210.12,27.62057458]
[1731656689818,0.12549,210.23,210.12,27.62057458]
[1731656689819,11.83177458,210.17,210.13,20.0]
[1731656690320,11.83177458,210.18,210.13,20.0]
[1731656690701,11.83177458,210.19,210.13,20.0]
[1731656690897,11.83177458,210.18,210.13,20.0]
[1731656691519,11.83177458,210.17,210.13,20.0]
[1731656691709,11.83177458,210.16,210.12,15.7888]
[1731656691895,11.83177458,210.13,210.12,15.7888]
[1731656692090,11.83177458,210.15,210.12,15.7888]
[1731656692301,11.83177458,210.13,210.12,15.7888]
[1731656692503,11.83177458,210.14,210.12,15.7888]
[1731656692696,11.83177458,210.15,210.12,15.7888]
[1731656692912,11.83177458,210.14,210.12,15.7888]
[1731656693402,11.83177458,210.15,210.12,15.7888]
[1731656694606,11.83177458,210.13,210.07,15.9291]
[1731656694811,11.83177458,210.12,210.07,15.9291]
[1731656697128,11.83177458,210.13,210.07,15.9291]
[1731656697419,11.83177458,210.14,210.07,27.76087458]
[1731656697798,11.83177458,210.13,210.07,15.9291]
[1731656698399,11.83177458,210.12,210.07,15.9291]
[1731656699722,11.83177458,210.13,210.07,15.9291]
[1731656699925,11.83177458,210.14,210.08,11.83177458]
[1731656700101,11.83177458,210.15,210.08,11.83177458]
[1731656700505,11.83177458,210.17,210.1,11.83177458]
[1731656702231,11.83177458,210.15,210.08,11.83177458]
[1731656702404,11.83177458,210.13,210.07,15.9291]
[1731656702737,11.83177458,210.11,210.07,15.9291]
[1731656703218,11.83177458,210.1,210.07,15.9291]
[1731656703428,11.83177458,210.11,210.07,15.9291]
[1731656703723,11.83177458,210.12,210.07,15.9291]
[1731656703908,11.83177458,210.1,210.07,15.9291]
[1731656704306,11.83177458,210.18,210.09,11.83177458]
[1731656704618,11.83177458,210.19,210.12,11.83177458]
[1731656704816,11.83177458,210.17,210.1,11.83177458]
[1731656705021,11.83177458,210.18,210.11,11.83177458]
[1731656705906,11.83177458,210.19,210.12,11.83177458]
[1731656706422,167.6664,210.25,210.15,11.83177458]
[1731656706423,11.83177458,210.22,210.15,11.83177458]
[1731656706628,11.83177458,210.2,210.13,11.83177458]
[1731656706807,11.83177458,210.19,210.12,17.96777458]
[1731656707523,11.83177458,210.19,210.13,11.83177458]
[1731656707727,11.83177458,210.2,210.13,11.83177458]
[1731656708516,11.83177458,210.21,210.14,11.83177458]
[1731656708717,11.83177458,210.22,210.15,11.83177458]
[1731656708919,11.83177458,210.21,210.14,11.83177458]
[1731656709233,11.83177458,210.22,210.15,11.83177458]
[1731656710530,11.83177458,210.23,210.16,11.83177458]
[1731656710735,11.83177458,210.23,210.16,27.15167458]
[1731656710935,11.83177458,210.22,210.16,15.3199]
[1731656711929,11.83177458,210.23,210.16,27.15167458]
[1731656712234,11.83177458,210.22,210.16,15.3199]
[1731656712413,28.533184,210.25,210.16,15.3199]
[1731656712615,28.533184,210.25,210.16,27.15167458]
[1731656712914,11.83177458,210.23,210.16,27.15167458]
[1731656714820,11.83177458,210.22,210.16,27.15167458]
[1731656715221,11.83177458,210.23,210.16,27.15167458]
[1731656715422,11.83177458,210.21,210.16,15.3199]
[1731656715723,11.83177458,210.23,210.16,27.15167458]
[1731656717238,11.83177458,210.25,210.18,11.83177458]
[1731656717637,11.83177458,210.26,210.19,11.83177458]
[1731656718137,0.4807536,210.27,210.21,11.83177458]
[1731656718343,11.83177458,210.25,210.16,15.3199]
[1731656718530,11.83177458,210.22,210.16,15.3199]
[1731656718919,11.83177458,210.22,210.16,27.15167458]
[1731656719231,11.83177458,210.23,210.16,27.15167458]
[1731656719440,11.83177458,210.22,210.16,27.15167458]
[1731656720044,23.902374,210.25,210.16,15.3199]
[1731656720544,11.83177458,210.25,210.18,11.83177458]
[1731656720841,7.53115473,210.24,210.17,7.53115473]
[1731656721439,7.53115473,210.25,210.18,7.53115473]
[1731656721745,7.53115473,210.24,210.17,7.53115473]
[1731656723140,7.53115473,210.25,210.17,7.53115473]
[1731656723339,7.53115473,210.24,210.17,7.53115473]
[1731656724526,7.53115473,210.24,210.16,22.85105473]
[1731656724822,7.53115473,210.23,210.16,22.85105473]
[1731656726345,7.53115473,210.19,210.16,15.3199]
[1731656726948,7.53115473,210.18,210.16,15.3199]
[1731656727125,7.53115473,210.17,210.12,6.136]
[1731656727335,7.53115473,210.13,210.11,16.387]
[1731656727532,7.53115473,210.12,210.11,16.387]
[1731656728420,7.53115473,210.15,210.11,16.387]
[1731656728623,4.7569,210.22,210.13,7.53115473]
[1731656728840,7.53115473,210.2,210.13,7.53115473]
[1731656729120,7.53115473,210.19,210.12,7.53115473]
[1731656729435,7.53115473,210.18,210.11,23.91815473]
[1731656730732,7.53115473,210.17,210.11,16.387]
[1731656731041,23.776884,210.23,210.11,16.387]
[1731656731042,7.53115473,210.13,210.11,16.387]
[1731656731229,7.53115473,210.12,210.11,16.387]
[1731656732381,7.53115473,210.12,210.07,6.0529]
[1731656732647,7.53115473,210.14,210.07,13.58405473]
[1731656732846,11.77852851,210.14,210.07,17.83142851]
[1731656734543,11.77852851,210.15,210.08,11.77852851]
[1731656734946,11.77852851,210.16,210.09,11.77852851]
[1731656735643,11.77852851,210.12,210.06,16.1411]
[1731656735849,11.77852851,210.11,210.06,16.1411]
[1731656736364,11.77852851,210.07,210.06,16.1411]
[1731656737251,11.77852851,210.07,210.02,6.3466]
[1731656737557,11.77852851,210.03,209.99,16.2562]
[1731656737859,11.77852851,210.09,210.02,11.77852851]
[1731656738037,7.43615487,210.19,209.99,16.2562]
[1731656738233,161.7,210.2,210.0,6.085]
[1731656738440,11.77852851,210.15,210.08,11.77852851]
[1731656738641,11.77852851,210.15,210.09,15.8771]
[1731656739152,11.77852851,210.13,210.09,15.8771]
[1731656740555,11.77852851,210.16,210.09,15.8771]
[1731656740740,11.77852851,210.13,210.09,15.8771]
[1731656741642,11.77852851,210.14,210.09,15.8771]
[1731656742231,11.77852851,210.16,210.09,27.65562851]
[1731656743359,11.77852851,210.15,210.09,15.8771]
[1731656745743,4.7564,210.24,210.1,11.77852851]
[1731656745939,11.77852851,210.2,210.12,11.77852851]
[1731656746147,11.77852851,210.22,210.14,11.77852851]
[1731656746346,11.77852851,210.21,210.13,11.77852851]
[1731656746859,11.77852851,210.2,210.12,11.77852851]
[1731656747035,11.77852851,210.19,210.12,11.77852851]
[1731656747239,11.77852851,210.17,210.1,11.77852851]
[1731656747951,11.77852851,210.18,210.1,11.77852851]
[1731656748151,11.77852851,210.18,210.11,11.77852851]
[1731656748468,11.77852851,210.19,210.12,11.77852851]
[1731656749253,11.77852851,210.2,210.12,11.77852851]
[1731656749463,11.77852851,210.2,210.13,11.77852851]
[1731656749664,11.77852851,210.22,210.14,11.77852851]
[1731656749864,11.77852851,210.22,210.15,11.77852851]
[1731656750155,4.7562,210.25,210.13,11.77852851]
[1731656750156,11.77852851,210.21,210.13,11.77852851]
[1731656750348,11.77852851,210.19,210.11,11.77852851]
[1731656751659,11.77852851,210.17,210.1,11.77852851]
[1731656754250,11.77852851,210.18,210.11,11.77852851]
[1731656754445,11.77852851,210.16,210.09,34.20322851]
[1731656754652,23.776884,210.21,210.09,34.20322851]
[1731656754653,11.77852851,210.14,210.09,22.4247]
[1731656755462,11.77852851,210.13,210.09,22.4247]
[1731656755776,11.77852851,210.14,210.09,22.4247]
[1731656756643,11.77852851,210.12,210.09,22.4247]
[1731656756851,11.77852851,210.12,210.09,15.8771]
[1731656758256,11.77852851,210.12,210.04,33.49572851]
[1731656758459,11.77852851,210.12,210.05,11.77852851]
[1731656758952,11.77852851,210.13,210.05,11.77852851]
[1731656760753,11.77852851,210.1,210.04,21.7172]
[1731656760955,16.77709,210.19,210.04,21.7172]
[1731656760956,11.77852851,210.11,210.04,33.49572851]
[1731656761348,11.77852851,210.1,210.04,21.7172]
[1731656761673,11.77852851,210.12,210.04,33.49572851]
[1731656761843,11.77852851,210.14,210.07,11.77852851]
[1731656763252,11.77852851,210.17,210.1,11.77852851]
[1731656763463,11.77852851,210.2,210.13,11.77852851]
[1731656764467,11.77852851,210.18,210.11,11.77852851]
[1731656764678,11.77852851,210.19,210.12,11.77852851]
[1731656765347,11.77852851,210.21,210.14,11.77852851]
[1731656765546,11.77852851,210.22,210.15,11.77852851]
[1731656766248,11.77852851,210.2,210.13,33.73332851]
[1731656766466,11.77852851,210.19,210.13,21.9548]
[1731656767072,11.77852851,210.2,210.13,33.73332851]
[1731656767256,11.77852851,210.19,210.13,21.9548]
[1731656767871,11.77852851,210.18,210.13,21.9548]
[1731656768074,11.77852851,210.15,210.08,27.68332851]
[1731656768373,11.77852851,210.16,210.09,20.0]
[1731656768556,11.77852851,210.16,210.09,31.77852851]
[1731656768963,11.77852851,210.15,210.08,27.68332851]
[1731656769473,11.77852851,210.14,210.08,15.9048]
[1731656769661,11.77852851,210.15,210.08,27.68332851]
[1731656770056,11.77852851,210.14,210.08,15.9048]
[1731656770255,11.77852851,210.12,210.08,15.9048]
[1731656770482,11.77852851,210.11,210.08,15.9048]
[1731656770774,11.77852851,210.09,210.03,15.0005]
[1731656773181,11.77852851,210.08,210.03,15.0005]
[1731656773379,11.77852851,210.1,210.03,26.77902851]
[1731656774077,11.77852851,210.13,210.06,11.77852851]
[1731656774286,11.77852851,210.16,210.09,11.77852851]
[1731656774457,11.77852851,210.15,210.08,11.77852851]
[1731656774657,11.77852851,210.15,210.07,11.77852851]
[1731656774969,11.77852851,210.14,210.07,11.77852851]
[1731656775273,11.77852851,210.14,210.03,15.0005]
[1731656775274,11.77852851,210.1,210.03,26.77902851]
[1731656775576,20.9482,210.19,210.03,26.77902851]
[1731656775577,11.77852851,210.14,210.07,11.77852851]
[1731656775767,4.7577,210.19,210.04,23.902374]
[1731656776075,23.776884,210.2,210.05,20.0]
[1731656777077,11.77852851,210.16,210.08,11.77852851]
[1731656777655,11.77852851,210.16,210.09,11.77852851]
[1731656777882,0.1,210.23,210.05,20.0]
[1731656777883,11.77852851,210.18,210.1,11.77852851]
[1731656778078,11.77852851,210.2,210.13,11.77852851]
[1731656778281,11.77852851,210.21,210.14,11.77852851]
[1731656778584,11.77852851,210.21,210.13,11.77852851]
[1731656779879,11.77852851,210.2,210.13,11.77852851]
[1731656780583,11.77852851,210.2,210.12,31.77852851]
[1731656780758,11.77852851,210.18,210.11,16.6337]
[1731656780953,11.77852851,210.17,210.11,16.6337]
[1731656782867,11.77852851,210.15,210.11,16.6337]
[1731656783068,11.77852851,210.14,210.11,16.6337]
[1731656783686,11.77852851,210.12,210.06,15.1906]
[1731656783862,161.72549,210.2,210.06,15.1906]
[1731656783863,11.77852851,210.1,210.06,15.1906]
[1731656784558,11.77852851,210.11,210.06,15.1906]
[1731656784753,11.77852851,210.1,210.06,15.1906]
[1731656785164,11.77852851,210.08,210.06,15.1906]
[1731656785379,11.77852851,210.07,210.01,16.1504]
[1731656785681,11.77852851,210.08,210.01,16.1504]
[1731656786182,23.776884,210.13,210.01,16.1504]
[1731656786183,11.77852851,210.09,210.02,11.77852851]
[1731656786485,11.77852851,210.1,210.03,11.77852851]
[1731656786982,11.77852851,210.09,210.02,11.77852851]
[1731656787177,11.77852851,210.05,210.01,16.1504]
[1731656787385,11.77852851,210.02,210.01,16.1504]
[1731656787681,11.77852851,210.02,209.95,6.5124]
[1731656787682,11.77852851,210.02,209.96,16.1459]
[1731656787987,11.77852851,210.01,209.96,16.1459]
[1731656788862,0.18624,210.11,209.96,16.1459]
[1731656789073,23.776884,210.11,210.04,11.77852851]
[1731656789269,11.77852851,210.13,210.05,11.77852851]
[1731656789471,11.77852851,210.12,210.05,11.77852851]
[1731656789981,11.77852851,210.15,210.07,11.77852851]
[1731656790363,11.77852851,210.11,210.04,11.77852851]
[1731656790565,0.12549,210.17,210.01,18.35122851]
[1731656790566,11.77852851,210.08,210.01,18.35122851]
[1731656790790,11.77852851,210.08,210.01,6.5727]
[1731656790970,0.22549,210.15,210.01,6.5727]
[1731656791284,11.77852851,210.06,210.01,6.5727]
[1731656792780,11.77852851,210.07,210.01,6.5727]
[1731656793394,11.77852851,210.06,210.01,6.5727]
[1731656794296,11.77852851,210.02,210.0,16.3855]
[1731656794476,11.77852851,210.01,209.95,21.6247]
[1731656794795,11.77852851,209.99,209.95,15.5257]
[1731656795478,11.77852851,210.0,209.95,15.5257]
[1731656796374,11.77852851,209.99,209.95,15.5257]
[1731656797675,11.77852851,210.01,209.95,15.5257]
[1731656797894,173.37852851,210.06,209.95,15.5257]
[1731656798099,11.77852851,210.07,210.0,11.77852851]
[1731656798296,11.77852851,210.05,209.98,11.77852851]
[1731656799387,11.77852851,210.06,209.98,11.77852851]
[1731656799993,11.77852851,210.05,209.98,11.77852851]
[1731656800782,11.77852851,210.06,209.99,11.77852851]
[1731656801281,11.77852851,210.05,209.98,11.77852851]
[1731656801879,11.77852851,210.06,209.99,11.77852851]
[1731656802687,11.77852851,210.06,209.98,11.77852851]
[1731656803292,11.77852851,210.08,210.01,11.77852851]
[1731656803501,11.77852851,210.09,210.02,11.77852851]
[1731656804000,11.77852851,210.07,210.0,11.77852851]
[1731656804301,11.77852851,210.07,209.99,11.77852851]
[1731656804491,11.77852851,210.04,209.98,6.1106]
[1731656806796,11.77852851,210.03,209.98,6.1106]
[1731656806994,11.77852851,210.04,209.98,6.1106]
[1731656808782,11.77852851,210.05,209.98,17.88912851]
[1731656809382,11.77852851,210.06,209.99,11.77852851]
[1731656809585,11.77852851,210.07,209.99,11.77852851]
[1731656809805,11.77852851,210.06,209.99,11.77852851]
[1731656810190,11.77852851,210.05,209.98,17.88912851]
[1731656810391,11.77852851,210.04,209.98,6.1106]
[1731656811899,11.77852851,210.0,209.95,15.5257]
[1731656814605,11.77852851,209.99,209.95,15.5257]
[1731656815491,11.77852851,209.98,209.95,15.5257]
[1731656818286,11.77852851,209.99,209.95,15.5257]
[1731656819303,11.77852851,210.0,209.95,15.5257]
[1731656819511,0.12549,210.05,209.95,15.5257]
[1731656819512,11.77852851,210.03,209.96,11.77852851]
[1731656820207,11.77852851,210.01,209.95,15.5257]
[1731656820583,11.77852851,210.02,209.95,27.30422851]
[1731656820802,11.77852851,210.03,209.96,11.77852851]
[1731656820991,11.77852851,210.02,209.95,27.30422851]
[1731656821299,11.77852851,210.01,209.95,15.5257]
[1731656821487,11.77852851,210.02,209.95,27.30422851]
[1731656821807,11.77852851,210.01,209.95,15.5257]
[1731656822984,11.77852851,210.02,209.95,27.30422851]
[1731656823303,11.77852851,210.06,209.99,11.77852851]
[1731656824416,11.77852851,210.08,210.01,11.77852851]
[1731656824705,11.77852851,210.08,209.96,23.902374]
[1731656824706,11.77852851,210.07,209.99,11.77852851]
[1731656824917,11.77852851,210.03,209.96,31.77852851]
[1731656825092,11.77852851,210.02,209.96,20.0]
[1731656825286,11.77852851,210.03,209.96,20.0]
[1731656825809,11.77852851,210.03,209.95,27.30422851]
[1731656825992,11.77852851,210.03,209.96,20.0]
[1731656826400,11.77852851,210.02,209.95,27.30422851]
[1731656826600,11.77852851,210.03,209.95,27.30422851]
[1731656827306,11.77852851,210.01,209.95,15.5257]
[1731656828094,11.77852851,210.02,209.95,27.30422851]
[1731656828419,11.77852851,210.03,209.96,11.77852851]
[1731656828911,11.77852851,210.06,209.99,11.77852851]
[1731656829121,11.77852851,210.05,209.98,11.77852851]
[1731656829911,11.77852851,210.08,210.01,11.77852851]
[1731656830299,11.77852851,210.09,210.02,11.77852851]
[1731656830816,11.77852851,210.09,210.03,11.77852851]
[1731656831518,11.77852851,210.09,210.02,11.77852851]
[1731656831813,11.77852851,210.07,210.01,18.25522851]
[1731656831999,11.77852851,210.05,210.01,6.4767]
[1731656832206,11.77852851,210.05,209.98,11.77852851]
[1731656833418,4.7594,210.11,209.96,18.37582851]
[1731656833419,11.77852851,210.03,209.96,18.37582851]
[1731656833596,11.77852851,210.02,209.96,6.5973]
[1731656833801,11.77852851,210.03,209.96,18.37582851]
[1731656834111,11.77852851,210.02,209.96,6.5973]
[1731656835320,11.77852851,210.01,209.96,6.5973]
[1731656835502,11.77852851,210.0,209.96,6.5973]
[1731656836416,11.77852851,210.02,209.96,6.5973]
[1731656836617,11.77852851,210.03,209.96,18.37582851]
[1731656836916,11.77852851,210.02,209.96,6.5973]
[1731656837697,11.77852851,210.03,209.96,18.37582851]
[1731656838312,11.77852851,210.08,210.01,11.77852851]
[1731656838797,11.77852851,210.06,209.98,11.77852851]
[1731656839313,11.77852851,210.05,209.98,11.77852851]
[1731656839615,11.77852851,210.06,209.99,11.77852851]
[1731656840720,11.77852851,210.08,210.01,11.77852851]
[1731656840928,11.77852851,210.09,210.02,11.77852851]
[1731656841132,161.6,210.14,210.01,11.77852851]
[1731656841133,11.77852851,210.08,210.01,11.77852851]
[1731656841422,11.77852851,210.07,210.0,11.77852851]
[1731656841920,11.77852851,210.11,210.03,28.23712851]
[1731656842511,11.77852851,210.1,210.03,28.23712851]
[1731656843009,11.77852851,210.1,210.03,16.4586]
[1731656843419,11.77852851,210.09,210.03,16.4586]
[1731656844302,11.77852851,210.12,210.04,11.77852851]
[1731656844515,23.776884,210.13,210.05,11.77852851]
[1731656844709,11.77852851,210.12,210.05,11.77852851]
[1731656845725,11.77852851,210.14,210.07,11.77852851]
[1731656846116,11.77852851,210.13,210.06,11.77852851]
[1731656846627,11.90401851,210.15,210.08,11.77852851]
[1731656846831,11.77852851,210.13,210.06,11.77852851]
[1731656847224,11.77852851,210.11,210.05,6.66]
[1731656847525,11.77852851,210.13,210.06,11.77852851]
[1731656847723,11.77852851,210.14,210.07,11.77852851]
[1731656848132,11.77852851,210.14,210.08,11.77852851]
[1731656848329,11.77852851,210.15,210.08,11.77852851]
[1731656848910,11.77852851,210.14,210.08,11.77852851]
[1731656849229,11.77852851,210.12,210.06,11.77852851]
[1731656849418,11.77852851,210.11,210.05,6.66]
[1731656849808,11.77852851,210.12,210.05,18.43852851]
[1731656850013,23.902374,210.15,210.05,18.43852851]
[1731656850014,11.77852851,210.11,210.05,6.66]
[1731656851510,11.77852851,210.12,210.05,18.43852851]
[1731656852464,11.77852851,210.13,210.06,11.77852851]
[1731656853034,11.77852851,210.15,210.08,11.77852851]
[1731656853427,11.77852851,210.13,210.06,11.77852851]
[1731656854526,11.77852851,210.15,210.07,11.77852851]
[1731656857331,11.77852851,210.15,210.08,11.77852851]
[1731656857846,11.77852851,210.13,210.06,11.77852851]
[1731656859038,11.77852851,210.16,210.09,11.77852851]
[1731656859219,4.88259,210.21,210.05,6.66]
[1731656859220,11.77852851,210.15,210.08,11.77852851]
[1731656860228,11.77852851,210.14,210.08,20.0]
[1731656860433,11.77852851,210.15,210.08,31.77852851]
[1731656861217,11.77852851,210.15,210.08,11.77852851]
[1731656861535,11.77852851,210.17,210.1,11.77852851]
[1731656862314,11.77852851,210.15,210.09,20.0]
[1731656863719,11.77852851,210.16,210.09,20.0]
[1731656864034,11.77852851,210.16,210.08,11.77852851]
[1731656864345,24.88329,210.18,210.05,6.66]
[1731656864346,11.77852851,210.14,210.07,11.77852851]
[1731656864861,11.77852851,210.15,210.08,11.77852851]
[1731656866222,31.77852851,210.18,210.1,11.77852851]
[1731656866622,35.68090251,210.19,210.11,11.77852851]
[1731656866818,11.77852851,210.18,210.11,11.77852851]
[1731656867019,11.77852851,210.16,210.09,11.77852851]
[1731656867347,11.77852851,210.14,210.07,11.77852851]
[1731656867650,11.77852851,210.15,210.08,11.77852851]
[1731656868031,11.77852851,210.13,210.06,11.77852851]
[1731656868353,11.77852851,210.14,210.07,11.77852851]
[1731656868536,11.77852851,210.13,210.06,11.77852851]
[1731656868845,11.77852851,210.16,210.09,11.77852851]
[1731656872130,11.77852851,210.13,210.06,20.0]
[1731656872459,11.77852851,210.13,210.06,31.77852851]
[1731656873331,11.77852851,210.14,210.07,11.77852851]
[1731656873742,11.77852851,210.15,210.08,11.77852851]
[1731656874132,11.77852851,210.14,210.07,11.77852851]
[1731656874539,11.77852851,210.14,210.06,20.0]
[1731656874540,11.77852851,210.15,210.08,11.77852851]
[1731656875450,0.8,210.1,210.06,20.0]
[1731656875632,0.8,210.1,210.09,11.77852851]
[1731656876855,0.8,210.1,210.08,11.77852851]
[1731656878449,0.8,210.1,210.07,11.77852851]
[1731656879652,0.8,210.1,210.05,6.66]
[1731656879866,11.77852851,210.09,210.03,16.4586]
[1731656880235,11.77852851,210.07,210.03,16.4586]